bitfinex-derivatives/quotes_ETHF0:USTF0_20260104
["timestamp","ask_amount","ask_price","bid_price","bid_amount"]
[1767541742434,0.15988,3128.7,3126.8,0.44729094]
[1767541742636,4.379,3128.6,3126.8,0.44729094]
[1767541742835,4.379,3128.6,3126.9,0.44729094]
[1767541743240,4.379,3128.6,3127.0,0.44729094]
[1767541744534,4.379,3128.6,3127.2,0.44729094]
[1767541745530,4.379,3128.6,3126.8,4.01555293]
[1767541745531,10.379,3128.6,3126.8,4.46284387]
[1767541745829,4.379,3128.6,3126.8,0.44729094]
[1767541746035,0.15989,3128.5,3126.9,40.8]
[1767541746832,0.15989,3128.5,3126.9,41.24729094]
[1767541747132,4.379,3128.4,3127.0,0.44729094]
[1767541749841,0.15989,3128.5,3127.0,0.44729094]
[1767541750041,4.53889,3128.4,3127.0,0.44729094]
[1767541750633,0.15991,3128.1,3126.7,4.01555293]
[1767541750835,0.15991,3128.1,3126.5,0.44729094]
[1767541751030,0.15991,3128.1,3126.5,41.24729094]
[1767541751829,0.15991,3128.1,3126.6,0.44729094]
[1767541752140,4.379,3128.0,3126.6,0.44729094]
[1767541753739,4.379,3128.0,3126.5,40.8]
[1767541754042,0.15994,3127.5,3126.2,0.00479831]
[1767541755040,0.15994,3127.5,3126.2,0.45208925]
[1767541757146,4.378,3127.4,3126.2,0.45208925]
[1767541760349,4.53794,3127.4,3126.2,0.45208925]
[1767541765152,0.15994,3127.4,3126.2,0.45208925]
[1767541765555,19.848,3128.6,3126.2,0.45208925]
[1767541765556,4.381,3127.7,3126.3,0.44729094]
[1767541765854,4.381,3127.6,3126.3,0.44729094]
[1767541766044,4.381,3127.6,3126.5,0.44729094]
[1767541766644,0.15989,3128.4,3126.5,0.44729094]
[1767541766952,7.7399,3128.3,3126.6,0.44729094]
[1767541767250,0.1599,3128.3,3126.6,0.44729094]
[1767541767550,4.381,3128.2,3126.6,0.44729094]
[1767541769456,0.15992,3127.9,3126.6,0.44729094]
[1767541771254,0.15992,3127.9,3126.6,0.40229094]
[1767541772745,4.381,3127.8,3126.6,0.40229094]
[1767541774852,4.382,3127.7,3126.6,0.40229094]
[1767541775557,4.382,3127.6,3126.6,0.40229094]
[1767541777463,3.35889,3128.4,3126.7,0.42269103]
[1767541777655,4.382,3128.3,3126.7,0.42269103]
[1767541777953,0.15989,3128.4,3126.7,0.42269103]
[1767541778150,4.382,3128.2,3126.7,0.42269103]
[1767541780258,0.15989,3128.4,3126.7,0.42269103]
[1767541780559,4.382,3128.3,3126.7,0.42269103]
[1767541783159,0.15989,3128.4,3126.7,0.42269103]
[1767541783460,4.382,3128.3,3126.7,0.42269103]
[1767541786858,0.75438899,3128.9,3126.9,0.42269103]
[1767541787063,4.382,3128.7,3126.9,0.42269103]
[1767541787362,4.382,3128.7,3126.8,0.15997]
[1767541787363,4.382,3128.7,3127.1,0.42269103]
[1767541789963,0.75438899,3128.9,3127.1,0.58265103]
[1767541790266,4.383,3128.7,3127.2,0.42269103]
[1767541792164,0.75438899,3128.9,3127.2,0.42269103]
[1767541792369,3.125,3128.7,3127.4,0.42269103]
[1767541793168,3.125,3128.7,3127.8,0.42269103]
[1767541794358,0.15983,3129.6,3127.8,0.42269103]
[1767541794672,4.38619583,3128.8,3127.8,0.42269103]
[1767541794967,0.00319583,3128.8,3127.8,0.42269103]
[1767541795272,0.00319583,3128.8,3128.0,0.42269103]
[1767541795964,0.79330718,3129.7,3128.1,0.42269103]
[1767541796169,4.383,3129.6,3128.1,0.42269103]
[1767541796358,0.79330718,3129.1,3128.1,0.42269103]
[1767541796558,4.383,3129.6,3128.1,0.42269103]
[1767541796766,4.383,3129.6,3128.2,40.8]
[1767541797071,4.38661804,3129.6,3128.2,41.2266236]
[1767541797769,4.38661804,3129.6,3128.3,0.42269103]
[1767541799666,4.383,3129.5,3128.3,0.42269103]
[1767541800074,0.00361804,3129.6,3128.4,0.42269103]
[1767541800862,4.383,3130.1,3128.6,0.41751213]
[1767541801169,0.15979,3130.4,3128.6,0.41751213]
[1767541801869,0.16321573,3130.4,3128.6,0.41751213]
[1767541802371,0.15984,3129.4,3128.2,0.00393257]
[1767541802869,2.659,3129.3,3128.2,0.00393257]
[1767541803263,6.0,3129.2,3127.7,0.00479831]
[1767541803461,0.15985,3129.1,3127.7,0.42231044]
[1767541804156,0.15985,3129.1,3127.7,0.00479831]
[1767541804462,0.15986,3129.0,3127.7,0.00808171]
[1767541806664,0.15986,3129.0,3128.2,0.5]
[1767541806864,0.15986,3129.0,3127.7,0.00808171]
[1767541807366,0.15986,3129.0,3127.3,0.41751213]
[1767541807766,0.00479831,3128.7,3127.3,0.41751213]
[1767541808374,0.00479831,3128.7,3127.3,0.42036454]
[1767541813271,0.16466831,3128.7,3127.3,0.42036454]
[1767541813463,0.16466831,3128.7,3126.9,0.41751213]
[1767541813464,6.00479831,3128.7,3126.9,0.41751213]
[1767541813668,0.15989,3128.3,3126.9,0.41751213]
[1767541813870,0.00479831,3128.7,3126.9,0.41751213]
[1767541813871,4.5429,3128.2,3126.9,0.41751213]
[1767541814579,4.54644049,3128.2,3126.9,0.42166034]
[1767541815381,4.38654049,3128.2,3126.9,0.42166034]
[1767541815971,0.00354049,3128.2,3126.9,0.42166034]
[1767541817775,0.00354049,3128.2,3127.0,0.41751213]
[1767541820785,0.00354049,3128.2,3127.1,0.41751213]
[1767541827687,0.00354049,3128.2,3127.2,0.41751213]
[1767541828081,0.00479831,3128.7,3127.3,0.41751213]
[1767541828393,0.00479831,3128.7,3127.5,0.41751213]
[1767541829086,0.00782238,3128.7,3127.5,0.41751213]
[1767541829484,0.00782238,3128.7,3127.5,4.43306506]
[1767541829786,0.15985,3129.1,3127.9,0.41751213]
[1767541830587,0.1628768,3129.1,3127.9,0.41751213]
[1767541831392,0.79385441,3128.8,3127.4,4.01555293]
[1767541831585,0.79865272,3128.8,3127.1,4.01555293]
[1767541831982,0.79865272,3128.8,3127.2,40.8]
[1767541832590,0.00479831,3128.8,3127.2,44.81555293]
[1767541833499,0.00479831,3128.8,3127.2,45.23644425]
[1767541834088,0.00479831,3128.8,3127.3,0.41490128]
[1767541836688,6.00479831,3128.8,3127.3,0.41490128]
[1767541837282,0.15987,3128.7,3127.3,0.41490128]
[1767541841307,0.00479831,3128.8,3127.3,0.41490128]
[1767541843114,0.00479831,3128.8,3127.3,12.10190128]
[1767541843316,0.00479831,3128.8,3127.4,0.41490128]
[1767541843503,0.00479831,3128.8,3127.5,40.8]
[1767541843699,0.00479831,3128.8,3127.6,0.41490128]
[1767541859325,0.79367382,3128.7,3127.3,4.01555293]
[1767541859525,0.79367382,3128.7,3127.2,4.01555293]
[1767541859829,0.16466831,3128.8,3127.3,4.01555293]
[1767541860630,3.77066831,3128.8,3127.3,4.01555293]
[1767541860929,3.77066831,3128.8,3127.3,10.01555293]
[1767541860930,0.00479831,3128.8,3127.3,10.01555293]
[1767541861130,0.00479831,3128.8,3127.7,4.01555293]
[1767541861426,0.0030268,3129.1,3127.8,0.38340018]
[1767541861627,0.39840047,3130.1,3128.0,0.38340018]
[1767541861628,0.15981,3130.0,3128.0,0.38340018]
[1767541862022,0.15981,3130.0,3128.3,0.38340018]
[1767541862611,0.16369314,3130.0,3128.3,0.38340018]
[1767541862819,0.56209361,3130.0,3128.3,0.38340018]
[1767541864019,0.00388314,3130.0,3128.3,0.38340018]
[1767541864220,0.00388314,3130.0,3128.3,6.38340018]
[1767541864428,0.00388314,3130.0,3128.6,0.38340018]
[1767541865229,0.00388314,3130.0,3128.8,0.38340018]
[1767541867131,0.00388314,3130.0,3129.0,0.38340018]
[1767541867527,1.263,3130.8,3129.2,0.38340018]
[1767541868534,1.26626568,3130.8,3129.2,0.38666331]
[1767541868829,0.00326568,3130.8,3129.2,0.38666331]
[1767541869024,0.00326568,3130.8,3129.3,4.56344222]
[1767541869220,0.00326568,3130.8,3129.4,0.38340018]
[1767541869429,0.00326568,3130.8,3129.7,0.00479831]
[1767541872430,0.00326568,3130.8,3129.7,0.38819849]
[1767541872633,0.00326568,3130.8,3129.7,0.00479831]
[1767541874637,0.00326568,3130.8,3129.7,0.38819849]
[1767541876134,0.39840047,3131.7,3129.8,0.38340018]
[1767541876341,4.373,3131.6,3129.8,0.38340018]
[1767541876837,0.39840047,3131.7,3130.0,0.38340018]
[1767541877040,1.05,3131.6,3130.0,0.38340018]
[1767541877538,4.37579997,3131.7,3130.0,0.38340018]
[1767541877735,0.00379997,3131.7,3130.0,0.38340018]
[1767541878528,0.00379997,3131.7,3130.2,0.38340018]
[1767541881736,0.00379997,3131.7,3130.4,0.38340018]
[1767541882138,0.15971,3131.9,3130.5,0.38340018]
[1767541882441,4.371,3132.3,3130.6,0.38340018]
[1767541882742,3.196,3132.4,3130.6,0.38340018]
[1767541883152,0.1597,3132.2,3130.6,0.38340018]
[1767541883843,0.0029363,3132.4,3130.6,6.38340018]
[1767541884037,0.0029363,3132.4,3130.7,0.38340018]
[1767541884433,0.0029363,3132.4,3130.9,0.38340018]
[1767541885048,0.1626263,3132.4,3130.9,0.38340018]
[1767541885342,0.1626263,3132.4,3131.3,0.00479057]
[1767541885955,6.15969,3132.3,3131.3,0.00479057]
[1767541886145,6.15969,3132.3,3130.9,0.38340018]
[1767541886146,0.1597,3132.1,3130.8,40.8]
[1767541886357,0.55811047,3132.0,3130.6,0.5]
[1767541886649,0.79219202,3131.5,3130.6,0.5]
[1767541887746,0.79219202,3131.2,3130.0,0.38340018]
[1767541888149,0.79219202,3130.9,3130.0,40.8]
[1767541888344,0.55813047,3131.6,3130.0,40.8]
[1767541888543,0.79219202,3131.0,3130.0,40.8]
[1767541888737,0.79219202,3131.0,3129.6,0.38340018]
[1767541889052,0.79219202,3130.7,3129.6,0.38340018]
[1767541889564,0.79219202,3130.7,3129.1,0.79219202]
[1767541889852,0.00479057,3130.5,3129.2,0.38666331]
[1767541890054,0.00479057,3130.5,3129.3,41.18340018]
[1767541891057,0.00479057,3130.5,3129.4,0.37804198]
[1767541891946,0.00479057,3130.5,3129.4,6.37804198]
[1767541892146,0.00479057,3130.5,3129.5,0.37804198]
[1767541892449,2.70774,3131.3,3129.5,0.37804198]
[1767541892656,2.70774,3131.3,3129.7,0.00479057]
[1767541893052,2.70774,3131.3,3129.7,0.38283255]
[1767541895556,2.70774,3131.3,3129.8,41.1981747]
[1767541895752,2.70774,3131.3,3129.9,0.3981747]
[1767541895953,2.70774,3131.3,3129.8,40.8]
[1767541896263,3.09214994,3131.3,3129.8,40.8]
[1767541896657,0.38440994,3131.2,3129.7,0.00479057]
[1767541897165,0.38440994,3131.2,3129.7,40.80479057]
[1767541897562,0.38440994,3131.2,3129.7,0.00479057]
[1767541897963,4.369,3131.1,3129.7,0.00479057]
[1767541898266,4.369,3131.2,3129.7,0.40296527]
[1767541898763,3.196,3131.9,3129.7,0.40296527]
[1767541898962,3.196,3131.9,3129.9,0.3981747]
[1767541899264,7.565,3131.9,3129.9,0.5579847]
[1767541899452,0.15971,3132.0,3130.1,0.3981747]
[1767541899855,4.369,3132.1,3130.1,0.3981747]
[1767541899856,0.0029363,3132.4,3130.1,0.5579747]
[1767541900059,4.369,3132.3,3130.4,0.3981747]
[1767541900260,4.369,3132.3,3130.5,0.3981747]
[1767541901372,0.0029363,3132.4,3130.6,0.3981747]
[1767541903669,0.0029363,3132.4,3130.8,0.3981747]
[1767541904368,0.0029363,3132.4,3131.3,0.00479057]
[1767541904573,0.0029363,3132.4,3131.3,0.40296527]
[1767541905163,7.72365,3133.1,3131.4,0.3981747]
[1767541905569,0.15965,3133.1,3131.4,0.3981747]
[1767541906169,0.16372336,3133.1,3131.4,0.40161656]
[1767541907374,0.00407336,3133.1,3131.4,0.40161656]
[1767541907976,0.00407336,3133.1,3131.4,6.40161656]
[1767541908176,0.00407336,3133.1,3131.5,0.3981747]
[1767541908986,0.00407336,3133.1,3131.6,41.1981747]
[1767541909479,0.00407336,3133.1,3131.7,0.3981747]
[1767541911071,0.00407336,3133.1,3131.8,0.3981747]
[1767541911781,0.00407336,3133.1,3131.8,6.3981747]
[1767541912080,0.00407336,3133.1,3131.9,0.3981747]
[1767541914678,0.00407336,3133.1,3131.6,40.8]
[1767541914877,0.00407336,3133.1,3131.7,0.3981747]
[1767541916777,0.00407336,3133.1,3131.6,40.8]
[1767541917168,0.00407336,3133.1,3131.7,0.3981747]
[1767541918766,6.00407336,3133.1,3131.7,0.3981747]
[1767541918978,0.00407336,3133.1,3131.7,0.3981747]
[1767541921885,0.00407336,3133.1,3131.8,0.4088227]
[1767541922685,0.00407336,3133.1,3131.6,40.8]
[1767541922981,0.00407336,3133.1,3131.7,0.4088227]
[1767541923781,0.00407336,3133.1,3131.8,0.4088227]
[1767541924081,0.15961,3133.8,3131.9,0.4088227]
[1767541924585,1.837,3134.2,3132.4,0.4088227]
[1767541924986,0.00296479,3134.2,3132.5,0.4088227]
[1767541925485,0.38611045,3135.9,3133.1,0.4088227]
[1767541925783,0.15952,3135.7,3133.3,0.4088227]
[1767541926578,1.28393756,3135.1,3133.3,0.4088227]
[1767541927095,1.28393756,3135.1,3133.5,0.4088227]
[1767541927288,1.28393756,3135.1,3133.6,0.4088227]
[1767541927489,0.525586,3135.1,3133.7,0.4088227]
[1767541927873,0.525586,3135.1,3133.8,4.10339802]
[1767541928078,0.525586,3135.1,3133.9,11.857]
[1767541928288,0.525586,3135.1,3133.8,4.10339802]
[1767541928488,0.525586,3135.1,3133.8,6.0]
[1767541928793,0.91169645,3135.1,3133.8,11.859]
[1767541929286,0.525586,3135.1,3133.8,17.859]
[1767541930492,0.38611045,3135.6,3133.9,5.36451123]
[1767541930682,0.38611045,3136.1,3134.0,0.1596]
[1767541930880,0.38611045,3136.1,3134.1,11.868]
[1767541931076,0.38611045,3136.1,3134.1,15.99628253]
[1767541931286,0.38611045,3136.1,3134.2,40.8]
[1767541931488,0.38938564,3136.1,3134.8,0.00479057]
[1767541933191,0.38611045,3136.0,3134.8,0.00479057]
[1767541933886,0.38611045,3136.0,3133.6,0.00299592]
[1767541933887,0.38611045,3135.5,3133.6,0.00299592]
[1767541934081,0.38611045,3135.3,3133.6,0.00299592]
[1767541934391,0.38611045,3135.3,3133.6,40.80299592]
[1767541934600,0.38611045,3135.2,3133.6,0.00299592]
[1767541935183,0.38611045,3135.0,3133.6,0.00299592]
[1767541935379,0.38611045,3134.9,3132.7,0.15967]
[1767541935583,0.38611045,3134.8,3132.7,0.15967]
[1767541935784,0.38611045,3134.8,3132.8,40.8]
[1767541936194,0.38611045,3134.0,3132.8,40.8]
[1767541936399,0.38611045,3134.0,3132.8,40.80256684]
[1767541936887,0.38611045,3133.9,3132.8,0.00256684]
[1767541937192,0.38988415,3133.9,3132.8,0.00256684]
[1767541940094,0.38988415,3133.9,3132.8,40.80256684]
[1767541940482,0.0037737,3133.9,3132.8,40.80256684]
[1767541940795,0.0037737,3133.9,3132.8,46.80256684]
[1767541941894,0.0037737,3133.9,3132.8,46.96222684]
[1767541942195,0.00479057,3134.1,3132.8,46.96222684]
[1767541942988,0.394904,3134.1,3132.8,46.96222684]
[1767541943890,0.394904,3134.1,3132.8,40.96222684]
[1767541947302,0.394904,3134.1,3133.0,0.15965]
[1767541947899,0.00879355,3134.1,3133.2,0.15964]
[1767541949208,0.00879355,3134.1,3133.2,6.0]
[1767541949397,0.15954,3135.3,3133.2,6.0]
[1767541949398,0.38611045,3135.2,3133.6,0.15962]
[1767541949591,0.38611045,3135.2,3133.7,0.15962]
[1767541949805,0.38611045,3135.2,3133.8,0.15961]
[1767541950198,0.38611045,3135.2,3133.9,40.8]
[1767541950398,0.38835186,3135.2,3133.9,40.8]
[1767541954793,0.40595507,3135.1,3133.9,40.8]
[1767541954993,0.40595507,3135.1,3133.4,11.926]
[1767541955407,0.40595507,3135.1,3133.5,40.8]
[1767541958812,0.40595507,3135.0,3133.5,40.8]
[1767541959609,6.15955,3135.1,3133.3,0.00479057]
[1767541959610,0.40595507,3134.8,3133.3,0.00479057]
[1767541960111,0.40595507,3134.8,3133.3,40.80479057]
[1767541961106,0.40595507,3134.8,3133.4,11.949]
[1767541961715,0.00224141,3135.2,3133.4,18.10863]
[1767541961918,0.00224141,3135.2,3133.4,16.12418293]
[1767541962415,0.40819648,3135.2,3133.5,4.17518293]
[1767541963619,0.40819648,3135.2,3133.6,4.01555293]
[1767541966316,0.40819648,3135.2,3133.5,0.15963]
[1767541966317,0.40819648,3135.2,3133.7,4.01555293]
[1767541966518,0.40819648,3135.2,3133.8,11.973]
[1767541968519,0.40819648,3135.2,3133.8,15.98855293]
[1767541970319,0.40819648,3135.2,3133.8,16.14816293]
[1767541972418,0.40819648,3135.2,3133.9,0.15961]
[1767541972615,0.40819648,3135.2,3134.0,0.1596]
[1767541975424,0.40819648,3135.2,3133.9,4.01555293]
[1767541975620,0.40819648,3135.2,3133.8,11.973]
[1767541975822,0.40819648,3135.2,3133.5,0.15963]
[1767541976124,0.40595507,3135.1,3133.5,0.15963]
[1767541977021,0.40595507,3135.1,3133.7,0.15962]
[1767541977927,0.40595507,3135.1,3133.8,0.15961]
[1767541979826,0.40595507,3135.1,3133.4,12.029]
[1767541980618,0.40595507,3135.1,3133.3,40.80479057]
[1767541981824,0.40873124,3135.0,3133.3,40.80479057]
[1767541984532,0.40873124,3135.0,3133.6,0.15962]
[1767541984724,0.40873124,3135.0,3133.7,12.052]
[1767541984920,0.40873124,3135.0,3133.8,0.15961]
[1767541985127,0.00224141,3135.2,3133.8,0.15961]
[1767541985632,0.41097265,3135.2,3133.8,0.15961]
[1767541987432,0.41097265,3135.2,3133.7,12.052]
[1767541988229,0.41097265,3135.2,3133.7,12.069]
[1767541988434,0.41097265,3135.2,3133.5,12.07]
[1767541989136,0.41097265,3135.2,3133.7,4.01555293]
[1767541989533,0.41097265,3135.2,3133.6,4.01555293]
[1767541990135,0.41097265,3135.2,3133.7,4.01555293]
[1767541990925,0.40873124,3135.1,3133.7,4.01555293]
[1767541991226,0.40873124,3135.1,3133.5,16.08555293]
[1767541991426,0.40873124,3135.1,3133.5,4.01555293]
[1767541991626,0.40873124,3135.1,3133.5,16.09955293]
[1767541993230,0.40873124,3135.1,3133.5,12.084]
[1767541993537,0.40873124,3135.1,3133.5,12.093]
[1767542000041,0.00224141,3135.2,3133.6,10.36079524]
[1767542000751,0.41097265,3135.2,3133.6,4.36079524]
[1767542000944,0.41097265,3135.2,3133.7,12.129]
[1767542001447,0.41097265,3135.2,3133.8,12.13]
[1767542001747,0.41097265,3135.2,3133.9,12.132]
[1767542006863,0.41097265,3135.2,3133.6,12.31562]
[1767542007166,0.41097265,3135.2,3133.8,0.79032283]
[1767542012070,0.41575684,3135.0,3133.3,53.7751134]
[1767542012465,0.41575684,3135.0,3134.0,0.79032283]
[1767542014170,0.41575684,3135.0,3133.8,0.79032283]
[1767542015266,0.41575684,3135.0,3133.4,4.17518293]
[1767542015473,0.41575684,3135.0,3133.4,4.96550576]
[1767542015875,0.41575684,3135.0,3133.4,17.16250576]
[1767542016972,0.41575684,3135.0,3133.6,4.01555293]
[1767542017273,0.41845396,3134.9,3133.6,4.01555293]
[1767542019377,0.41845396,3134.9,3133.5,4.01555293]
[1767542020675,0.41845396,3134.9,3133.6,4.01555293]
[1767542022973,0.41845396,3134.6,3133.6,4.01555293]
[1767542023177,0.41845396,3134.6,3133.3,0.00479057]
[1767542026777,0.41845396,3135.1,3133.8,0.79032283]
[1767542027472,0.41845396,3135.1,3134.1,0.79032283]
[1767542030376,0.41845396,3135.1,3133.7,0.79032283]
[1767542031089,0.41845396,3135.1,3133.5,0.79032283]
[1767542033894,0.41845396,3135.1,3133.4,0.15963]
[1767542034097,0.41845396,3135.1,3133.6,0.79032283]
[1767542036992,0.41845396,3135.1,3133.5,0.79032283]
[1767542037692,0.41845396,3135.1,3133.7,4.01555293]
[1767542040691,0.41845396,3135.1,3133.8,0.79032283]
[1767542041096,0.41845396,3135.1,3134.1,0.79032283]
[1767542041599,0.41845396,3135.1,3133.7,4.80587576]
[1767542041795,0.41845396,3135.1,3133.7,4.01555293]
[1767542043098,0.42703476,3134.8,3133.7,4.01555293]
[1767542043499,0.42703476,3134.8,3133.5,4.01555293]
[1767542045500,0.42703476,3134.8,3133.3,4.0203435]
[1767542047903,0.42703476,3134.8,3133.4,0.79032283]
[1767542049707,0.42703476,3134.8,3133.3,4.81066633]
[1767542054310,0.42703476,3134.8,3133.3,4.0203435]
[1767542055313,0.42703476,3134.7,3133.3,4.0203435]
[1767542061314,0.42703476,3134.4,3133.3,0.00479057]
[1767542065928,4.77503476,3134.4,3133.3,0.00479057]
[1767542066115,0.42703476,3134.3,3133.3,0.00479057]
[1767542068018,0.58662476,3134.3,3133.3,0.00479057]
[1767542068218,0.42703476,3134.2,3133.3,0.00479057]
[1767542074624,0.44446121,3134.6,3133.3,0.00479057]
[1767542074927,4.79746121,3134.6,3133.3,0.00479057]
[1767542075321,0.44446121,3134.5,3133.3,0.00479057]
[1767542076031,0.44446121,3134.5,3133.4,40.8]
[1767542078630,0.44446121,3134.5,3133.3,0.00479057]
[1767542079131,0.44446121,3134.5,3133.4,40.8]
[1767542079339,0.44446121,3134.4,3133.4,40.8]
[1767542079629,0.44446121,3134.4,3133.3,0.00479057]
[1767542083434,0.44446121,3134.3,3133.3,0.00479057]
[1767542086435,0.44446121,3134.2,3133.3,0.00479057]
[1767542092340,0.60405121,3134.2,3133.3,0.00479057]
[1767542092535,0.44446121,3134.1,3133.3,0.00479057]
[1767542093039,0.44446121,3134.0,3132.8,0.00256684]
[1767542093240,0.44925178,3134.0,3132.8,0.00256684]
[1767542094339,0.44446121,3133.9,3132.8,0.00256684]
[1767542095747,0.44446121,3133.8,3132.8,0.00256684]
[1767542096045,3.69446121,3133.8,3132.8,0.00256684]
[1767542096443,0.44446121,3133.8,3132.8,0.00256684]
[1767542102350,4.80646121,3133.8,3132.8,0.00256684]
[1767542102654,0.44152824,3133.7,3132.8,0.00256684]
[1767542111658,0.44152824,3133.7,3132.5,3.51555293]
[1767542112758,0.15963,3133.6,3132.5,3.51892108]
[1767542112961,0.44152824,3133.5,3132.5,0.00336815]
[1767542116862,0.44152824,3133.3,3131.8,40.8]
[1767542117166,4.80752824,3133.2,3131.8,40.8]
[1767542117670,0.44152824,3133.1,3131.8,40.8]
[1767542117960,0.44152824,3133.1,3131.8,40.80414673]
[1767542122276,0.44152824,3133.1,3131.8,46.80414673]
[1767542122476,0.16440057,3134.0,3132.0,0.4426948]
[1767542122667,4.366,3133.6,3132.0,12.9116948]
[1767542122867,4.366,3133.7,3132.0,12.9116948]
[1767542123168,4.366,3133.7,3132.0,16.92475404]
[1767542123972,4.366,3133.7,3132.0,12.9116948]
[1767542124166,0.00479057,3134.0,3132.4,0.79075284]
[1767542124380,0.00479057,3134.0,3132.5,12.9186948]
[1767542125272,0.00479057,3134.0,3132.6,0.4426948]
[1767542125481,0.00479057,3134.0,3132.7,0.4426948]
[1767542125675,0.00479057,3134.0,3132.7,0.6023648]
[1767542125885,0.00479057,3134.0,3132.7,4.61542404]
[1767542126086,0.00479057,3134.0,3132.8,40.8]
[1767542126589,0.00479057,3134.0,3133.0,0.79064901]
[1767542130580,0.00479057,3134.0,3133.0,6.79064901]
[1767542131589,0.00479057,3134.0,3133.1,40.8]
[1767542139294,0.00479057,3134.0,3133.1,53.328]
[1767542139989,0.00479057,3134.0,3133.3,0.79064901]
[1767542141082,0.59754666,3134.6,3133.3,0.79064901]
[1767542141284,0.43797666,3135.0,3133.6,0.79064901]
[1767542141491,0.43797666,3135.0,3133.9,0.79064901]
[1767542141893,0.43797666,3135.0,3133.6,0.79064901]
[1767542143991,0.43797666,3134.9,3133.6,0.79064901]
[1767542145494,0.43797666,3134.9,3133.5,12.536]
[1767542145690,0.43797666,3134.9,3133.5,13.32664901]
[1767542148897,0.43797666,3134.9,3133.8,0.79064901]
[1767542149494,0.43797666,3134.9,3133.5,12.536]
[1767542149696,0.43797666,3134.9,3133.8,0.79064901]
[1767542154002,0.43797666,3134.7,3133.3,4.01784981]
[1767542154195,0.43797666,3134.7,3133.3,0.00479057]
[1767542154596,0.43797666,3134.7,3133.3,4.01784981]
[1767542156601,0.79064901,3134.5,3133.3,4.01784981]
[1767542156809,0.43797666,3134.2,3133.3,4.01784981]
[1767542156998,0.43797666,3134.2,3133.3,0.00479057]
[1767542161593,0.43635192,3134.5,3133.3,0.00479057]
[1767542161999,0.43635192,3134.3,3133.3,0.00479057]
[1767542173511,0.43635192,3134.9,3133.3,0.46966882]
[1767542173813,0.43635192,3134.9,3133.7,0.79064901]
[1767542174219,1.22700093,3134.9,3133.4,4.80370825]
[1767542174523,0.43635192,3134.5,3133.3,4.01784981]
[1767542175717,4.51955,3135.1,3133.8,0.79064901]
[1767542175718,0.43635192,3135.0,3133.8,0.79064901]
[1767542175911,0.43635192,3135.0,3133.5,0.79064901]
[1767542176321,0.43635192,3134.9,3133.5,0.79064901]
[1767542177026,0.43635192,3134.9,3133.3,4.01784981]
[1767542183941,0.43635192,3134.9,3133.4,4.01305924]
[1767542185931,0.43635192,3134.6,3133.4,4.01305924]
[1767542186441,0.43635192,3134.6,3133.3,4.01784981]
[1767542186831,0.43635192,3134.6,3133.3,4.80849882]
[1767542188540,0.43635192,3134.6,3133.3,4.01784981]
[1767542190445,0.15956,3134.9,3133.3,4.45662892]
[1767542190640,0.15956,3134.9,3133.4,4.01305924]
[1767542191947,0.15956,3134.9,3133.3,4.45662892]
[1767542192147,0.61670634,3134.9,3133.3,4.45662892]
[1767542193545,0.61670634,3134.9,3133.4,4.01305924]
[1767542196154,0.45714634,3134.9,3133.4,4.46264085]
[1767542196345,0.45714634,3134.9,3133.5,0.44958161]
[1767542197758,0.45714634,3134.9,3133.4,4.01305924]
[1767542200658,0.45714634,3134.9,3133.3,0.00479057]
[1767542200659,0.61670634,3134.9,3133.5,4.01305924]
[1767542200853,0.44948819,3134.8,3133.3,0.00479057]
[1767542201664,0.44948819,3134.8,3133.4,4.01305924]
[1767542202564,4.80548819,3134.8,3133.5,4.01305924]
[1767542208068,0.44948819,3134.8,3133.5,4.01305924]
[1767542208268,4.33748819,3134.8,3133.5,4.01305924]
[1767542210977,4.33748819,3134.8,3133.6,4.01305924]
[1767542213071,0.44948819,3134.8,3133.6,4.01305924]
[1767542213274,4.80648819,3134.8,3133.6,4.01305924]
[1767542221277,0.47679344,3134.7,3133.6,4.01305924]
[1767542226380,0.47679344,3134.7,3133.5,4.01305924]
[1767542230078,4.357,3134.8,3133.5,4.01305924]
[1767542230482,4.357,3134.8,3133.6,4.01305924]
[1767542230779,4.359,3134.8,3133.6,4.01305924]
[1767542231679,0.47679344,3135.1,3133.7,4.01305924]
[1767542231882,0.47679344,3135.1,3133.7,4.45933703]
[1767542232079,0.47679344,3135.1,3133.9,4.01305924]
[1767542232480,0.47679344,3135.1,3133.8,4.01305924]
[1767542234980,0.47679344,3135.1,3133.9,40.8]
[1767542235382,3.40024141,3135.2,3133.9,40.8]
[1767542235990,0.00224141,3135.2,3133.9,40.8]
[1767542236383,0.00224141,3135.2,3133.9,40.95961]
[1767542236583,0.00224141,3135.2,3133.9,45.41894703]
[1767542236890,0.00224141,3135.2,3134.0,0.1596]
[1767542237088,0.00224141,3135.2,3134.0,0.60848343]
[1767542237289,0.00224141,3135.2,3134.1,0.1596]
[1767542237489,0.00224141,3135.2,3134.2,4.01305924]
[1767542238089,0.00224141,3135.2,3134.2,4.17264924]
[1767542238392,0.00224141,3135.2,3134.3,4.01305924]
[1767542240796,0.00224141,3135.2,3134.2,4.17264924]
[1767542241798,0.00224141,3135.2,3134.4,4.01305924]
[1767542246007,0.00224141,3135.2,3134.4,3.68728884]
[1767542246403,0.00224141,3135.2,3134.2,0.15959]
[1767542250503,0.00224141,3135.2,3134.3,0.79000092]
[1767542251909,0.00224141,3135.2,3134.2,0.94959092]
[1767542253109,0.00224141,3135.2,3134.0,0.00260564]
[1767542253110,0.44484038,3135.2,3134.0,0.00260564]
[1767542253606,0.44259897,3135.0,3134.0,0.00260564]
[1767542254203,0.45734148,3134.8,3134.0,0.00260564]
[1767542255201,0.45734148,3134.6,3133.5,44.80727375]
[1767542255598,0.45734148,3134.6,3133.5,40.8]
[1767542255799,0.45734148,3134.6,3133.4,4.79727467]
[1767542256298,0.45734148,3134.6,3133.4,45.60051717]
[1767542258202,0.45734148,3134.5,3133.4,4.01051625]
[1767542258403,0.45734148,3134.5,3133.4,0.0032425]
[1767542260708,6.45734148,3134.5,3133.4,0.0032425]
[1767542260910,1.2473424,3134.0,3133.4,0.0032425]
[1767542264512,1.2473424,3134.0,3132.7,4.00727375]
[1767542264513,0.45734148,3133.8,3132.7,4.00727375]
[1767542265113,0.45734148,3133.8,3132.7,44.80727375]
[1767542265512,0.45734148,3133.8,3132.7,44.81131829]
[1767542265714,0.45734148,3133.8,3132.7,40.80404454]
[1767542267214,0.45734148,3133.8,3132.8,0.79000092]
[1767542267517,0.00479057,3134.0,3132.8,0.79000092]
[1767542270021,0.00479057,3134.0,3132.7,40.80404454]
[1767542276025,0.6365,3133.9,3132.7,40.80404454]
[1767542278715,0.45734148,3135.3,3133.8,0.79000092]